fUST/lending_fUST_20240819
["ID","MTS","AMOUNT","RATE_DAILY","PERIOD"]
[335241624,1724020241766,-403.9235607,0.0001588,2]
[335241625,1724020242286,-66.0948563,0.0001588,2]
[335241626,1724020242296,-470.018417,0.0001588,2]
[335241627,1724020242308,-470.018417,0.0001588,2]
[335241628,1724020242318,-870.626382,0.0001588,2]
[335241629,1724020242327,-134.05608051,0.0001588,2]
[335241634,1724020242701,-151.93627,0.0001587,2]
[335241635,1724020242721,-335.96233649,0.0001588,2]
[335241636,1724020242738,-3400.62334677,0.0001588,2]
[335241637,1724020242753,-1558.5662569,0.0001589,2]
[335241638,1724020242769,-153.0,0.000159,2]
[335241639,1724020242783,-207.5283979,0.000159,2]
[335241640,1724020242798,-155.833677,0.000159,2]
[335241641,1724020242813,-816.064538,0.000159,2]
[335241642,1724020242827,-386.514089,0.000159,2]
[335241643,1724020242843,-816.064538,0.000159,2]
[335241644,1724020242861,-386.514089,0.000159,2]
[335241645,1724020242873,-1364.310846,0.000159,2]
[335241646,1724020242884,-1364.310846,0.000159,2]
[335241647,1724020242900,-1427.506133,0.000159,2]
[335241648,1724020242917,-1427.506133,0.000159,2]
[335241649,1724020242932,-328.230358,0.000159,2]
[335241650,1724020242948,-328.230358,0.000159,2]
[335241651,1724020242962,-870.626382,0.000159,2]
[335241652,1724020242974,-870.626382,0.000159,2]
[335241653,1724020242989,-924.702757,0.0001594,2]
[335241654,1724020243003,-924.702757,0.0001594,2]
[335241655,1724020243018,-1544.478139,0.0001594,2]
[335241656,1724020243030,-1544.478139,0.0001594,2]
[335241657,1724020243043,-470.018417,0.0001594,2]
[335241658,1724020243056,-470.018417,0.0001594,2]
[335241659,1724020243069,-61860.29181409,0.0001594,2]
[335241706,1724021022543,-600.87674953,0.00013025,2]
[335241712,1724021047910,-492.69254794,0.00013051,2]
[335241721,1724021143157,-188.996783,0.00014247,2]
[335241722,1724021143186,-168.701461,0.00014375,2]
[335241723,1724021143208,-600.87674953,0.00014519,2]
[335241724,1724021143230,-247.2106107,0.00014734,2]
[335241727,1724021210335,-600.87674953,0.00013971,2]
[335241728,1724021229098,-211.01732116,0.00014519,2]
[335241729,1724021229122,-1248.85137132,0.00014788,2]
[335241747,1724021421910,-600.87674953,0.00013792,2]
[335241760,1724021432095,-492.69254794,0.00014788,2]
[335241831,1724021438297,-515.34829455,0.00014788,2]
[335241918,1724021607147,-425.45011146,0.00013971,2]
[335241919,1724021619743,-600.87674953,0.00013971,2]
[335241943,1724021809935,-444.02600491,0.00013971,2]
[335241950,1724022343111,-179.546943,0.00014247,2]
[335241951,1724022343135,-278.00149881,0.00014354,2]
[335241960,1724022545101,-199.36494005,0.00014354,2]
[335241961,1724022586041,5327.60651547,0.00014268,2]
[335242100,1724022657154,1249.45949084,9.9e-05,2]
[335242101,1724022665184,820.12008693,9.9e-05,2]
[335242102,1724022665447,2347.03437639,0.00014245,2]
[335242103,1724022672051,-7620.42148344,0.00014354,2]
[335242104,1724022682652,170.569595,0.00014247,2]
[335242105,1724022690859,-2005.0,0.00016438,10]
[335242106,1724022708262,1626.86783463,0.00014247,2]
[335242107,1724022713310,156.0682927,0.00014247,2]
[335242108,1724022729518,218.62299037,0.00014247,2]
[335242116,1724022949149,-1587.07609115,0.00013971,3]
[335242117,1724022985770,-154.77556307,0.00013698,2]
[335242118,1724022987778,-1372.55038062,0.00013698,2]
[335242119,1724023005385,-154.77556307,0.00013971,2]
[335242120,1724023005419,-4563.51898994,0.00013971,2]
[335242121,1724023007792,-154.77556307,0.00013971,2]
[335242122,1724023011182,-150.0,0.000175,14]
[335242123,1724023036813,-1204.0,0.00018092,10]
[335242124,1724023047522,-1400.0,0.00018092,10]
[335242126,1724023090502,-2000.0,0.00018092,10]
[335242127,1724023092816,-2000.0,0.00018092,10]
[335242128,1724023099863,-1574.0,0.00018092,10]
[335242134,1724023160288,-193.07070382,0.00022982,120]
[335242140,1724023184385,-159.313279,0.00013913,2]
[335242141,1724023185552,-159.313279,0.00013978,2]
[335242145,1724023203551,-838.695,0.000245,120]
[335242146,1724023203577,-838.696,0.000245,120]
[335242147,1724023203604,-129.609,0.000245,120]
[335242149,1724023211168,-709.087,0.000245,120]
[335242150,1724023211195,-838.696,0.000245,120]
[335242151,1724023211222,-452.217,0.000245,120]
[335242152,1724023213273,-386.478,0.000245,120]
[335242153,1724023213306,-1613.522,0.0002475,120]
[335242155,1724023219142,-41.943,0.0002475,120]
[335242156,1724023219168,-1251.057,0.0002475,120]
[335242165,1724023352834,-500.0,0.00013276,2]
[335242166,1724023353428,-500.0,0.00013276,2]
[335242167,1724023354000,-500.0,0.00013276,2]
[335242168,1724023354722,-500.0,0.00013276,2]
[335242169,1724023356008,-500.0,0.00013276,2]
[335242170,1724023357044,-500.0,0.00013276,2]
[335242171,1724023357655,-500.0,0.00013276,2]
[335242172,1724023358211,-500.0,0.00013276,2]
[335242174,1724023359075,-500.0,0.00013276,2]
[335242175,1724023359551,-569.95050245,0.00013276,2]
[335242176,1724023361364,-500.0,0.00013276,2]
[335242177,1724023362012,-500.0,0.00013276,2]
[335242178,1724023362606,-500.0,0.00013276,2]
[335242179,1724023363211,-500.0,0.00013276,2]
[335242180,1724023363796,-500.0,0.00013276,2]
[335242181,1724023364358,-500.0,0.00013276,2]
[335242182,1724023374089,-12418.60467855,0.00013276,2]
[335242183,1724023374697,-186.067537,0.00013699,2]
[335242184,1724023374722,-313.932463,0.00013699,2]
[335242185,1724023536142,-5327.60651547,0.00014005,2]
[335242186,1724023536166,-159.313279,0.00014044,2]
[335242187,1724023536189,-150.0,0.00014097,2]
[335242188,1724023536212,-159.313279,0.0001411,2]
[335242189,1724023536236,-159.313279,0.00014176,2]
[335242190,1724023536259,-159.313279,0.00014242,2]
[335242191,1724023536283,-159.313279,0.00014308,2]
[335242192,1724023536306,-159.313279,0.00014374,2]
[335242193,1724023536338,-159.313279,0.0001444,2]
[335242194,1724023536359,-421.6054629,0.000145,2]
[335242195,1724023536381,-288.4418541,0.000145,2]
[335242196,1724023536405,-159.313279,0.00014506,2]
[335242197,1724023536428,-159.313279,0.00014572,2]
[335242198,1724023536451,-159.313279,0.00014638,2]
[335242199,1724023536474,-282.603711,0.00014795,2]
[335242200,1724023536498,-500.0,0.00014899,2]
[335242201,1724023536523,-500.0,0.00014899,2]
[335242202,1724023536548,-500.0,0.00014899,2]
[335242203,1724023536573,-500.0,0.00014899,2]
[335242204,1724023536598,-500.0,0.00014899,2]
[335242205,1724023536621,-500.0,0.00014899,2]
[335242206,1724023536646,-500.0,0.00014899,2]
[335242207,1724023536670,-500.0,0.00014899,2]
[335242208,1724023536699,-500.0,0.00014899,2]
[335242209,1724023536723,-500.0,0.00014899,2]
[335242210,1724023536748,-500.0,0.00014899,2]
[335242211,1724023536772,-500.0,0.00014899,2]
[335242212,1724023536799,-500.0,0.00014899,2]
[335242213,1724023536830,-500.0,0.00014899,2]
[335242214,1724023536854,-500.0,0.00014899,2]
[335242215,1724023536879,-500.0,0.00014899,2]
[335242216,1724023536903,-287.41128575,0.00014899,2]
[335242217,1724023536925,-153.0,0.000149,2]
[335242218,1724023536947,-153.0,0.000149,2]
[335242219,1724023536970,-153.0,0.000149,2]
[335242220,1724023536993,-153.0,0.000149,2]
[335242221,1724023537015,-260.8194266,0.00014904,2]
[335242222,1724023537038,-153.0,0.00014978,2]
[335242223,1724023537060,-207.5283979,0.00014978,2]
[335242224,1724023537086,-5244.23039316,0.00015,2]
[335242225,1724023537108,-953.29878775,0.00015213,2]
[335242226,1724023537129,-153.0,0.00015288,2]
[335242227,1724023537150,-782.46103051,0.00015522,2]
[335242228,1724023537172,-782.46103051,0.00015563,2]
[335242229,1724023537194,-1110.8112074,0.00015615,2]
[335242230,1724023537218,-2000.0,0.0001578,2]
[335242231,1724023537243,-2195.87694844,0.00015789,2]
[335242232,1724023537267,-647.77880311,0.00015819,2]
[335242233,1724023537290,-155.14004745,0.00015849,2]
[335242234,1724023537319,-500.0,0.00015889,2]
[335242235,1724023537343,-500.0,0.00015889,2]
[335242236,1724023537365,-344.51987673,0.00015889,2]
[335242237,1724023537390,-289.07973404,0.00015889,2]
[335242238,1724023537414,-500.0,0.00015889,2]
[335242239,1724023537438,-500.0,0.00015889,2]
[335242240,1724023537461,-500.0,0.00015889,2]
[335242241,1724023537486,-500.0,0.00015889,2]
[335242242,1724023537507,-152.794696,0.0001589,2]
[335242243,1724023537530,-151.0,0.0001589,2]
[335242244,1724023537551,-151.0,0.0001589,2]
[335242245,1724023537576,-43214.54799582,0.0001589,2]
[335242246,1724023630102,-600.87674953,0.00014245,2]
[335242247,1724023630124,-1107.45995268,0.00014245,2]
[335242248,1724023630146,-160.41055449,0.00014245,2]
[335242249,1724023630167,-162.041115,0.00014247,2]
[335242250,1724023630189,-230.79201209,0.00014519,2]
[335242309,1724023838648,-166.666669,0.00014665,2]
[335242310,1724023838658,-268.473525,0.00014795,2]
[335242311,1724023838668,-186.0675373,0.00014867,2]
[335242312,1724023838678,-605.00818427,0.00015,2]
[335242313,1724023838688,-166.666669,0.00015047,2]
[335242314,1724023838697,-166.666669,0.00015429,2]
[335242315,1724023838706,-2000.0,0.000158,2]
[335242316,1724023838716,-248.0,0.00015888,2]
[335242317,1724023838725,-500.0,0.00015889,2]
[335242318,1724023838734,-420.8234762,0.00015889,2]
[335242319,1724023838744,-500.0,0.00015889,2]
[335242320,1724023838753,-189.57126292,0.00015889,2]
[335242321,1724023838763,-241.16391371,0.00015889,2]
[335242322,1724023838772,-302.35581383,0.00015889,2]
[335242323,1724023838784,-500.0,0.00015889,2]
[335242324,1724023838794,-500.0,0.00015889,2]
[335242325,1724023838803,-500.0,0.00015889,2]
[335242326,1724023838812,-8693.97353041,0.0001589,2]
[335242327,1724023839611,-8768.01666607,0.0001589,2]
[335242387,1724023843828,197.02177348,0.00010959,2]
[335242388,1724023843851,303.05822652,0.00010959,2]
[335242402,1724023846701,-415.56990217,0.0001589,2]
[335242405,1724023864733,154.68290005,0.00014519,10]
[335242406,1724023895656,166.4,5.479e-05,2]
[335242407,1724023965548,2044.55426687,6.641e-05,2]
[335242408,1724023973389,154.68290005,0.00014519,10]
[335242409,1724023988381,154.68290005,5.479e-05,10]
[335242412,1724024470196,1658.58284904,0.000165,10]
[335242413,1724024548731,258.33,0.000165,10]
[335242416,1724024828504,-1417.58643632,0.00014087,2]
[335242420,1724024853149,-1540.03986161,0.00014087,2]
[335242426,1724024956106,-211.01732116,0.00013792,2]
[335242427,1724024956127,-254.1434,0.00014077,2]
[335242428,1724024956148,-1613.7543042,0.00014121,2]
[335242429,1724024956169,-201.042695,0.00014247,2]
[335242430,1724024956191,-162.041115,0.00014247,2]
[335242478,1724025038778,-7491.16569015,0.00014519,2]
[335242479,1724025038788,-167.423812,0.00014718,2]
[335242480,1724025038798,-167.423812,0.00014726,2]
[335242481,1724025038807,-167.423812,0.00014734,2]
[335242482,1724025038818,-167.423812,0.00014742,2]
[335242483,1724025038827,-167.423812,0.0001475,2]
[335242484,1724025038838,-167.423812,0.00014759,2]
[335242485,1724025038849,-167.423812,0.00014767,2]
[335242486,1724025038859,-167.423812,0.00014775,2]
[335242487,1724025038869,-167.423812,0.00014783,2]
[335242488,1724025038878,-167.423812,0.00014791,2]
[335242489,1724025038888,-255.049848,0.00014795,2]
[335242490,1724025038897,-306.0,0.00015041,2]
[335242491,1724025038907,-5327.60651547,0.00015671,2]
[335242492,1724025038918,-1481.77854032,0.0001578,2]
[335242493,1724025038927,-2236.66540214,0.0001578,2]
[335242494,1724025038938,-2000.0,0.0001578,2]
[335242495,1724025038948,-153.0,0.000158,2]
[335242496,1724025038959,-153.0,0.000158,2]
[335242497,1724025038969,-306.0,0.000158,2]
[335242498,1724025038980,-153.0,0.000158,2]
[335242499,1724025038990,-1481.77854032,0.00015808,2]
[335242500,1724025039002,-1481.77854032,0.00015835,2]
[335242501,1724025039014,-500.0,0.00015838,2]
[335242502,1724025039025,-368.44257678,0.00015838,2]
[335242503,1724025039034,-500.0,0.00015838,2]
[335242504,1724025039044,-500.0,0.00015838,2]
[335242505,1724025039054,-500.0,0.00015838,2]
[335242506,1724025039066,-570.99673258,0.00015838,2]
[335242507,1724025039077,-500.0,0.00015838,2]
[335242508,1724025039088,-71010.43990134,0.00015839,2]
[335242509,1724025039100,-242.9856,0.0001586,2]
[335242510,1724025039111,-1481.77854032,0.00015863,2]
[335242511,1724025039121,-151.0,0.0001588,2]
[335242512,1724025039132,-826.597614,0.0001588,2]
[335242513,1724025039141,-652.851631,0.0001588,2]
[335242514,1724025039150,-151.0,0.0001588,2]
[335242515,1724025039161,-826.597614,0.0001588,2]
[335242516,1724025039170,-652.851631,0.0001588,2]
[335242517,1724025039179,-151.0,0.0001588,2]
[335242518,1724025039188,-309.211271,0.0001588,2]
[335242519,1724025039197,-309.211271,0.0001588,2]
[335242520,1724025039207,-334.362084,0.0001588,2]
[335242521,1724025039216,-334.362084,0.0001588,2]
[335242522,1724025039225,-174.629512,0.0001588,2]
[335242523,1724025039234,-1081.134697,0.0001588,2]
[335242524,1724025039243,-174.629512,0.0001588,2]
[335242525,1724025039252,-1081.134697,0.0001588,2]
[335242526,1724025039261,-158.078623,0.0001588,2]
[335242527,1724025039270,-253.008629,0.0001588,2]
[335242528,1724025039279,-253.008629,0.0001588,2]
[335242529,1724025039287,-929.408862,0.0001588,2]
[335242530,1724025039297,-929.408862,0.0001588,2]
[335242531,1724025039306,-272.003504,0.0001588,2]
[335242532,1724025039315,-272.003504,0.0001588,2]
[335242533,1724025039324,-289.104621,0.0001588,2]
[335242534,1724025039333,-151.0,0.0001588,2]
[335242535,1724025039342,-407.939224,0.0001588,2]
[335242536,1724025039351,-407.939224,0.0001588,2]
[335242537,1724025039360,-749.706051,0.0001588,2]
[335242538,1724025039370,-749.706051,0.0001588,2]
[335242539,1724025039379,-151.0,0.0001588,2]
[335242540,1724025039389,-151.0,0.0001588,2]
[335242541,1724025039398,-151.0,0.0001588,2]
[335242542,1724025039410,-878.467619,0.0001588,2]
[335242543,1724025039420,-878.467619,0.0001588,2]
[335242544,1724025039430,-878.467619,0.0001588,2]
[335242545,1724025039439,-878.467619,0.0001588,2]
[335242546,1724025039448,-878.467619,0.0001588,2]
[335242547,1724025039457,-878.467619,0.0001588,2]
[335242548,1724025039467,-151.0,0.0001588,2]
[335242549,1724025039476,-151.0,0.0001588,2]
[335242550,1724025039485,-151.0,0.0001588,2]
[335242551,1724025039494,-265.35986,0.0001588,2]
[335242552,1724025039503,-265.35986,0.0001588,2]
[335242553,1724025039512,-265.35986,0.0001588,2]
[335242554,1724025039522,-265.35986,0.0001588,2]
[335242555,1724025039531,-265.35986,0.0001588,2]
[335242556,1724025039540,-265.35986,0.0001588,2]
[335242557,1724025039549,-401.220841,0.0001588,2]
[335242558,1724025039558,-401.220841,0.0001588,2]
[335242559,1724025039567,-401.220841,0.0001588,2]
[335242560,1724025039577,-401.220841,0.0001588,2]
[335242561,1724025039586,-401.220841,0.0001588,2]
[335242562,1724025039595,-401.220841,0.0001588,2]
[335242563,1724025039604,-320382.306339,0.0001588,2]
[335242564,1724025039613,-157.85977464,0.00015889,2]
[335242565,1724025039623,-4630.76121891,0.00015889,2]
[335242566,1724025039632,-151.0,0.00015889,2]
[335242567,1724025039641,-826.597614,0.00015889,2]
[335242568,1724025039650,-652.851631,0.00015889,2]
[335242569,1724025039666,-151.0,0.00015889,2]
[335242570,1724025039675,-826.597614,0.00015889,2]
[335242571,1724025039684,-652.851631,0.00015889,2]
[335242572,1724025039694,-151.0,0.00015889,2]
[335242573,1724025039703,-309.211271,0.00015889,2]
[335242574,1724025039712,-151.0,0.00015889,2]
[335242575,1724025039721,-309.211271,0.00015889,2]
[335242576,1724025039730,-334.362084,0.00015889,2]
[335242577,1724025039739,-151.0,0.00015889,2]
[335242578,1724025039750,-334.362084,0.00015889,2]
[335242579,1724025039759,-174.629512,0.00015889,2]
[335242580,1724025039768,-1081.134697,0.00015889,2]
[335242581,1724025039777,-174.629512,0.00015889,2]
[335242582,1724025039788,-1081.134697,0.00015889,2]
[335242583,1724025039798,-1091.448676,0.00015889,2]
[335242584,1724025039808,-1142.004907,0.00015889,2]
[335242585,1724025039818,-1091.448676,0.00015889,2]
[335242586,1724025039828,-1142.004907,0.00015889,2]
[335242587,1724025039838,-253.008629,0.00015889,2]
[335242588,1724025039847,-929.408862,0.00015889,2]
[335242589,1724025039858,-253.008629,0.00015889,2]
[335242590,1724025039868,-929.408862,0.00015889,2]
[335242591,1724025039878,-272.003504,0.00015889,2]
[335242592,1724025039889,-272.003504,0.00015889,2]
[335242593,1724025039899,-151.93627,0.00015889,2]
[335242594,1724025039913,-407.939224,0.00015889,2]
[335242595,1724025039927,-407.939224,0.00015889,2]
[335242596,1724025039936,-407.939224,0.00015889,2]
[335242597,1724025039947,-407.939224,0.00015889,2]
[335242598,1724025039957,-749.706051,0.00015889,2]
[335242599,1724025039967,-749.706051,0.00015889,2]
[335242600,1724025039978,-154.376963,0.00015889,2]
[335242601,1724025039990,-878.467619,0.00015889,2]
[335242602,1724025040000,-878.467619,0.00015889,2]
[335242603,1724025040011,-878.467619,0.00015889,2]
[335242604,1724025040021,-878.467619,0.00015889,2]
[335242605,1724025040031,-151.0,0.00015889,2]
[335242606,1724025040041,-151.0,0.00015889,2]
[335242607,1724025040051,-265.35986,0.00015889,2]
[335242608,1724025040061,-265.35986,0.00015889,2]
[335242609,1724025040071,-265.35986,0.00015889,2]
[335242610,1724025040081,-265.35986,0.00015889,2]
[335242611,1724025040090,-5244.23039316,0.00015889,2]
[335242612,1724025040101,-401.220841,0.00015889,2]
[335242613,1724025040111,-401.220841,0.00015889,2]
[335242617,1724025040121,-401.220841,0.00015889,2]
[335242618,1724025040283,-401.220841,0.00015889,2]
[335242619,1724025040293,-151.0,0.0001589,2]
[335242620,1724025040304,-151.0,0.0001589,2]
[335242621,1724025040314,-151.0,0.0001589,2]
[335242622,1724025040325,-151.0,0.0001589,2]
[335242623,1724025040334,-151.0,0.0001589,2]
[335242624,1724025040343,-262.584287,0.0001589,2]
[335242625,1724025040353,-262.584287,0.0001589,2]
[335242626,1724025040363,-262.584287,0.0001589,2]
[335242627,1724025040372,-262.584287,0.0001589,2]
[335242628,1724025040382,-151.0,0.0001589,2]
[335242629,1724025040392,-151.0,0.0001589,2]
[335242630,1724025040401,-151.0,0.0001589,2]
[335242631,1724025040420,-151.0,0.0001589,2]
[335242633,1724025040431,-151.0,0.0001589,2]
[335242635,1724025040440,-151.0,0.0001589,2]
[335242637,1724025040449,-151.0,0.0001589,2]
[335242638,1724025040458,-151.0,0.0001589,2]
[335242639,1724025040468,-151.0,0.0001589,2]
[335242640,1724025040477,-151.0,0.0001589,2]
[335242641,1724025040487,-151.0,0.0001589,2]
[335242642,1724025040497,-211.739216,0.0001589,2]
[335242643,1724025040506,-151.0,0.0001589,2]
[335242644,1724025040516,-151.0,0.0001589,2]
[335242645,1724025040528,-151.0,0.0001589,2]
[335242646,1724025040538,-151.0,0.0001589,2]
[335242647,1724025040548,-178.549255,0.0001589,2]
[335242648,1724025040558,-151.0,0.0001589,2]
[335242649,1724025040567,-178.549255,0.0001589,2]
[335242650,1724025040577,-178.549255,0.0001589,2]
[335242651,1724025040588,-178.549255,0.0001589,2]
[335242652,1724025040598,-178.549255,0.0001589,2]
[335242653,1724025040607,-178.549255,0.0001589,2]
[335242654,1724025040618,-178.549255,0.0001589,2]
[335242655,1724025040628,-178.549255,0.0001589,2]
[335242656,1724025040639,-178.549255,0.0001589,2]
[335242657,1724025040649,-178.549255,0.0001589,2]
[335242658,1724025040667,-157.728852,0.0001589,2]
[335242659,1724025040679,-157.728852,0.0001589,2]
[335242661,1724025040688,-157.728852,0.0001589,2]
[335242663,1724025040698,-157.728852,0.0001589,2]
[335242665,1724025040707,-157.728852,0.0001589,2]
[335242667,1724025040716,-157.728852,0.0001589,2]
[335242669,1724025040726,-157.728852,0.0001589,2]
[335242671,1724025040736,-157.728852,0.0001589,2]
[335242672,1724025040745,-157.728852,0.0001589,2]
[335242673,1724025040754,-157.728852,0.0001589,2]
[335242674,1724025040764,-151.0,0.0001589,2]
[335242675,1724025040774,-151.847396,0.0001589,2]
[335242676,1724025040784,-152.785194,0.0001589,2]
[335242677,1724025040795,-826.597614,0.0001589,2]
[335242678,1724025040806,-826.597614,0.0001589,2]
[335242679,1724025040815,-826.597614,0.0001589,2]
[335242680,1724025040824,-826.597614,0.0001589,2]
[335242681,1724025040833,-652.851631,0.0001589,2]
[335242683,1724025040843,-652.851631,0.0001589,2]
[335242684,1724025040853,-652.851631,0.0001589,2]
[335242685,1724025040863,-652.851631,0.0001589,2]
[335242686,1724025040873,-652.851631,0.0001589,2]
[335242687,1724025040883,-652.851631,0.0001589,2]
[335242688,1724025040892,-826.597614,0.0001589,2]
[335242689,1724025040901,-826.597614,0.0001589,2]
[335242690,1724025040916,-826.597614,0.0001589,2]
[335242691,1724025040925,-652.851631,0.0001589,2]
[335242692,1724025040933,-652.851631,0.0001589,2]
[335242693,1724025040942,-826.597614,0.0001589,2]
[335242694,1724025040951,-151.0,0.0001589,2]
[335242695,1724025040961,-151.0,0.0001589,2]
[335242696,1724025040970,-151.0,0.0001589,2]
[335242697,1724025040980,-652.851631,0.0001589,2]
[335242698,1724025040989,-268.422765,0.0001589,2]
[335242699,1724025040998,-826.597614,0.0001589,2]
[335242700,1724025041008,-826.597614,0.0001589,2]
[335242701,1724025041017,-826.597614,0.0001589,2]
[335242702,1724025041026,-826.597614,0.0001589,2]
[335242703,1724025041035,-652.851631,0.0001589,2]
[335242704,1724025041043,-826.597614,0.0001589,2]
[335242705,1724025041052,-652.851631,0.0001589,2]
[335242706,1724025041062,-826.597614,0.0001589,2]
[335242707,1724025041071,-652.851631,0.0001589,2]
[335242708,1724025041080,-652.851631,0.0001589,2]
[335242709,1724025041089,-826.597614,0.0001589,2]
[335242710,1724025041099,-826.597612,0.0001589,2]
[335242711,1724025041108,-652.851631,0.0001589,2]
[335242712,1724025041117,-652.851631,0.0001589,2]
[335242713,1724025041126,-652.851623,0.0001589,2]
[335242714,1724025041136,-151.0,0.0001589,2]
[335242715,1724025041145,-151.0,0.0001589,2]
[335242716,1724025041154,-151.0,0.0001589,2]
[335242717,1724025041166,-188.71131,0.0001589,2]
[335242718,1724025041175,-1481.77854032,0.0001589,2]
[335242719,1724025041184,-309.211271,0.0001589,2]
[335242720,1724025041193,-309.211271,0.0001589,2]
[335242721,1724025041202,-309.211271,0.0001589,2]
[335242722,1724025041211,-309.211271,0.0001589,2]
[335242723,1724025041220,-309.211271,0.0001589,2]
[335242724,1724025041229,-309.211271,0.0001589,2]
[335242725,1724025041239,-309.211271,0.0001589,2]
[335242726,1724025041250,-309.211271,0.0001589,2]
[335242727,1724025041261,-151.0,0.0001589,2]
[335242728,1724025041271,-152.726954,0.0001589,2]
[335242729,1724025041281,-309.211271,0.0001589,2]
[335242730,1724025041292,-309.211271,0.0001589,2]
[335242731,1724025041303,-309.211271,0.0001589,2]
[335242732,1724025041313,-309.211271,0.0001589,2]
[335242733,1724025041322,-309.211271,0.0001589,2]
[335242734,1724025041331,-309.211271,0.0001589,2]
[335242735,1724025041340,-309.211271,0.0001589,2]
[335242736,1724025041350,-309.211275,0.0001589,2]
[335242737,1724025041359,-334.362084,0.0001589,2]
[335242738,1724025041368,-334.362084,0.0001589,2]
[335242739,1724025041380,-334.362084,0.0001589,2]
[335242740,1724025041391,-334.362084,0.0001589,2]
[335242741,1724025041401,-334.362084,0.0001589,2]
[335242742,1724025041413,-334.362084,0.0001589,2]
[335242743,1724025041427,-334.362084,0.0001589,2]
[335242744,1724025041441,-334.362084,0.0001589,2]
[335242745,1724025041451,-151.0,0.0001589,2]
[335242746,1724025041460,-334.362084,0.0001589,2]
[335242747,1724025041470,-151.0,0.0001589,2]
[335242748,1724025041480,-334.362084,0.0001589,2]
[335242749,1724025041489,-151.0,0.0001589,2]
[335242750,1724025041498,-334.362084,0.0001589,2]
[335242751,1724025041508,-151.0,0.0001589,2]
[335242752,1724025041517,-334.362084,0.0001589,2]
[335242753,1724025041527,-151.0,0.0001589,2]
[335242754,1724025041539,-334.362084,0.0001589,2]
[335242755,1724025041548,-151.0,0.0001589,2]
[335242756,1724025041559,-334.362084,0.0001589,2]
[335242757,1724025041569,-231.398342,0.0001589,2]
[335242758,1724025041579,-334.362084,0.0001589,2]
[335242759,1724025041590,-334.362087,0.0001589,2]
[335242760,1724025041599,-174.629512,0.0001589,2]
[335242761,1724025041609,-174.629512,0.0001589,2]
[335242762,1724025041618,-174.629512,0.0001589,2]
[335242763,1724025041628,-174.629512,0.0001589,2]
[335242764,1724025041638,-174.629512,0.0001589,2]
[335242765,1724025041648,-174.629512,0.0001589,2]
[335242766,1724025041659,-174.629512,0.0001589,2]
[335242767,1724025041677,-1081.134697,0.0001589,2]
[335242768,1724025041687,-1081.134697,0.0001589,2]
[335242769,1724025041696,-174.629512,0.0001589,2]
[335242770,1724025041706,-174.629512,0.0001589,2]
[335242771,1724025041717,-174.629512,0.0001589,2]
[335242772,1724025041727,-1081.134697,0.0001589,2]
[335242773,1724025041737,-174.629512,0.0001589,2]
[335242774,1724025041748,-174.629512,0.0001589,2]
[335242775,1724025041757,-174.629512,0.0001589,2]
[335242776,1724025041767,-1081.134697,0.0001589,2]
[335242777,1724025041778,-174.629512,0.0001589,2]
[335242778,1724025041788,-1081.134697,0.0001589,2]
[335242779,1724025041798,-174.629512,0.0001589,2]
[335242780,1724025041807,-174.62951,0.0001589,2]
[335242781,1724025041817,-1081.134697,0.0001589,2]
[335242782,1724025041826,-1081.134697,0.0001589,2]
[335242783,1724025041836,-1081.134697,0.0001589,2]
[335242784,1724025041845,-1081.134697,0.0001589,2]